fUST/lending_fUST_20240121
["ID","MTS","AMOUNT","RATE_DAILY","PERIOD"]
[312328174,1705777840808,-274.67474509,0.00038999,7]
[312328175,1705777840818,-500.0,0.00038999,7]
[312328176,1705777840827,-465.50241451,0.00038999,7]
[312328177,1705777840839,-500.0,0.00038999,7]
[312328178,1705777840848,-541.64497921,0.00038999,7]
[312328179,1705777840858,-47043.1236201,0.00039,7]
[312328197,1705777841338,-2226.02284046,0.00039,7]
[312328198,1705777841349,-1355.75528558,0.00039,7]
[312328363,1705777846292,-3201.35828213,0.00029659,2]
[312328413,1705779032395,-178.69540057,0.00019674,2]
[312328414,1705779032405,-154.78330338,0.00019675,3]
[312328415,1705779032414,-154.78330338,0.00019676,2]
[312328416,1705779032423,-163.5644823,0.00019698,2]
[312328417,1705779032432,-155.29979075,0.00019798,2]
[312328418,1705779032440,-168.891698,0.00020959,2]
[312328419,1705779032449,-4812.32326455,0.00021999,2]
[312328420,1705779032459,-154.86090047,0.00022,2]
[312328421,1705779032468,-293.34385947,0.00022,4]
[312328422,1705779032478,-166.666666,0.00023446,2]
[312328423,1705779032487,-3966.85623058,0.00023717,2]
[312328424,1705779032496,-2073.0632604,0.00023717,2]
[312328425,1705779032505,-470.52459336,0.00023717,2]
[312328426,1705779032513,-678.35754423,0.00023718,2]
[312328427,1705779032522,-24900.0,0.00023719,2]
[312328428,1705779032531,-1467.7685682,0.00023999,2]
[312328429,1705779032540,-4012.5594856,0.00024,2]
[312328430,1705779032549,-166.666666,0.00024086,2]
[312328431,1705779032558,-166.666666,0.00024725,2]
[312328432,1705779032567,-166.666666,0.00025364,2]
[312328433,1705779032575,-166.666666,0.00026003,2]
[312328434,1705779032584,-200.0,0.00026398,15]
[312328435,1705779032593,-166.666666,0.00026643,2]
[312328436,1705779032602,-200.64311703,0.00027,2]
[312328437,1705779032610,-200.64311702,0.00027,2]
[312328438,1705779032619,-174.547786,0.00027887,2]
[312328439,1705779032628,-194.50083425,0.00027963,2]
[312328440,1705779032637,-181.83131421,0.00027963,2]
[312328441,1705779032646,-180.23341861,0.00027963,2]
[312328442,1705779032655,-682.20107228,0.00027963,2]
[312328443,1705779032665,-154.95351395,0.00027963,2]
[312328444,1705779032674,-154.95351395,0.00027963,2]
[312328445,1705779032683,-327.38324213,0.00027963,2]
[312328446,1705779032692,-1139.87767947,0.00027964,2]
[312328447,1705779032701,-316.64538569,0.00027964,2]
[312328448,1705779032709,-9116.9761504,0.0002875,4]
[312328449,1705779032718,-157.865816,0.00028767,2]
[312328450,1705779032727,-158.373525,0.00028767,2]
[312328451,1705779032736,-280.0,0.00029038,15]
[312328452,1705779032745,-158.373525,0.00029648,2]
[312328453,1705779032753,-270.6351013,0.00029657,2]
[312328454,1705779032762,-717.36067047,0.00029658,2]
[312328455,1705779032770,-3216.27669923,0.00029659,2]
[312328456,1705779032779,-1429.55506106,0.00029659,2]
[312328457,1705779032788,-154.78330338,0.0003,2]
[312328458,1705779032797,-6763.78500734,0.0003,4]
[312328459,1705779032806,-244.03237749,0.0003,4]
[312328460,1705779032818,-157.8896426,0.0003,2]
[312328461,1705779033001,-188.0,0.0003,2]
[312328462,1705779033011,-157.865816,0.00030308,2]
[312328463,1705779033020,-158.373525,0.00030528,2]
[312328464,1705779033029,-238.14143998,0.00031,4]
[312328465,1705779033039,-1703.5470231,0.00031358,4]
[312328466,1705779033048,-158.373525,0.00031409,2]
[312328467,1705779033057,-150.77383924,0.00031724,2]
[312328468,1705779033066,-157.865816,0.00031849,2]
[312328469,1705779033075,-25868.04181508,0.000319,2]
[312328470,1705779033084,-391.0,0.00031941,15]
[312328471,1705779033093,-1497.88502726,0.00031998,4]
[312328472,1705779033102,-21544.48389427,0.00032,4]
[312328528,1705779038624,-154.78330338,0.00019673,3]
[312328531,1705779038633,-2440.65,0.0002999,3]
[312328533,1705779038643,-188.0,0.00032,2]
[312328534,1705779038652,-263657.38276426,0.00032,4]
[312328536,1705779038661,-154.78330338,0.00032,4]
[312328538,1705779038670,-158.373525,0.0003229,2]
[312328540,1705779038680,-500.0,0.00032305,2]
[312328543,1705779038689,-500.0,0.00032305,2]
[312328544,1705779038698,-500.0,0.00032305,2]
[312328546,1705779038707,-500.0,0.00032305,2]
[312328548,1705779038718,-191.20728432,0.00032305,2]
[312328550,1705779038727,-500.0,0.00032305,2]
[312328552,1705779038737,-500.0,0.00032305,2]
[312328554,1705779038746,-500.0,0.00032305,2]
[312328556,1705779038755,-500.0,0.00032305,2]
[312328558,1705779038764,-500.0,0.00032305,2]
[312328560,1705779038773,-500.0,0.00032305,2]
[312328562,1705779038782,-338.11679041,0.00032305,2]
[312328564,1705779038791,-500.0,0.00032305,2]
[312328566,1705779038800,-500.0,0.00032305,2]
[312328568,1705779038809,-500.0,0.00032305,2]
[312328570,1705779038819,-500.0,0.00032305,2]
[312328572,1705779038829,-500.0,0.00032305,2]
[312328574,1705779038838,-4936.77007947,0.00032306,5]
[312328576,1705779038847,-50000.0,0.00032306,6]
[312328578,1705779038856,-50000.0,0.00032306,6]
[312328580,1705779038866,-82114.2579569,0.00032306,6]
[312328582,1705779038875,-4153.13584291,0.00032306,4]
[312328584,1705779038884,-1094.47895322,0.000325,20]
[312328587,1705779038895,-468.5980063,0.00032575,2]
[312328588,1705779038905,-5818.90816225,0.00032575,2]
[312328590,1705779038915,-1357.74523786,0.00032575,2]
[312328593,1705779038924,-409.66950895,0.00032575,2]
[312328595,1705779038934,-250.0,0.00032876,7]
[312328597,1705779038943,-660.24671343,0.000329,2]
[312328598,1705779038952,-154.78330338,0.00033,4]
[312328600,1705779038961,-158.97429893,0.00033,2]
[312328602,1705779038971,-165.0,0.00033,2]
[312328604,1705779038980,-160.0,0.00033,2]
[312328606,1705779038990,-171.0,0.00033,2]
[312328608,1705779039000,-160.0,0.00033151,2]
[312328610,1705779039010,-158.373525,0.0003317,2]
[312328612,1705779039019,-157.865816,0.0003339,2]
[312328614,1705779039028,-249.63618982,0.00033587,2]
[312328616,1705779039037,-158.373525,0.00034051,2]
[312328618,1705779039046,-500.0,0.00034246,7]
[312328621,1705779039056,-160.0,0.00034521,2]
[312328623,1705779039065,-157.865816,0.00034932,2]
[312328624,1705779039075,-158.373525,0.00034932,2]
[312328626,1705779039084,-591.88726683,0.00035,2]
[312328628,1705779039094,-154.78330338,0.00035,6]
[312328630,1705779039103,-154.78330338,0.00035,4]
[312328632,1705779039113,-3119.96924767,0.00035,20]
[312328633,1705779039121,-500.0,0.00035,5]
[312328635,1705779039130,-333.12649891,0.00035,4]
[312328636,1705779039139,-2085.08363542,0.00035,4]
[312328638,1705779039147,-2356.16401148,0.00035,2]
[312328640,1705779039156,-31980.30894113,0.00035,4]
[312328642,1705779039165,-155.23866682,0.00035,2]
[312328644,1705779039174,-200.0,0.00035135,15]
[312328646,1705779039183,-348.0,0.00035135,15]
[312328648,1705779039192,-150.77383924,0.00035248,2]
[312328650,1705779039201,-250.11570644,0.00035248,2]
[312328652,1705779039211,-500.0,0.000353,7]
[312328654,1705779039220,-500.0,0.000353,7]
[312328656,1705779039229,-500.0,0.000353,7]
[312328658,1705779039237,-4425.50824305,0.000355,14]
[312328660,1705779039246,-500.0,0.000356,7]
[312328662,1705779039255,-750.0,0.00035616,7]
[312328664,1705779039264,-500.0,0.00035616,2]
[312328666,1705779039273,-500.0,0.00035616,2]
[312328668,1705779039282,-500.0,0.00035616,2]
[312328670,1705779039291,-500.0,0.00035616,2]
[312328672,1705779039300,-500.0,0.00035616,2]
[312328674,1705779039308,-500.0,0.00035616,2]
[312328676,1705779039317,-500.0,0.00035616,2]
[312328677,1705779039326,-291.50651603,0.00035616,2]
[312328679,1705779039335,-182.36949,0.00035616,120]
[312328680,1705779039343,-158.373525,0.00035812,2]
[312328681,1705779039352,-301.54767848,0.00035841,4]
[312328682,1705779039361,-1000.0,0.000359,7]
[312328684,1705779039370,-5000.0,0.00035956,2]
[312328685,1705779039379,-1000.0,0.000362,7]
[312328687,1705779039389,-160.81104418,0.00036205,2]
[312328688,1705779039398,-162.0,0.00036247,2]
[312328690,1705779039407,-603.09535696,0.00036443,7]
[312328692,1705779039415,-157.865816,0.00036473,2]
[312328693,1705779039424,-1000.0,0.000365,7]
[312328695,1705779039433,-158.373525,0.00036693,2]
[312328697,1705779039442,-1000.0,0.00036986,7]
[312328699,1705779039452,-154.78330338,0.00037,4]
[312328701,1705779039461,-150.0,0.00037,30]
[312328703,1705779039471,-166.74380429,0.00037056,4]
[312328704,1705779039479,-302.0,0.0003718,2]
[312328706,1705779039488,-300.0,0.0003718,2]
[312328708,1705779039498,-150.0,0.000372,30]
[312328710,1705779039507,-1206.19071393,0.00037366,30]
[312328712,1705779039516,-212.642763,0.000374,30]
[312328713,1705779039525,-158.373525,0.00037573,2]
[312328714,1705779039534,-660.24671343,0.000379,2]
[312328715,1705779039543,-2139.23248446,0.00038,4]
[312328716,1705779039552,-157.865816,0.00038014,2]
[312328717,1705779039561,-243.452,0.00038308,2]
[312328719,1705779039694,-1250.0,0.00038356,7]
[312328721,1705779039704,-158.373525,0.00038454,2]
[312328722,1705779039713,-200.0,0.00038649,30]
[312328724,1705779039723,-200.0,0.00038649,30]
[312328726,1705779039732,-368.0,0.00038649,30]
[312328728,1705779039741,-282.4328768,0.00038805,8]
[312328730,1705779039750,-87723.92936845,0.00039,7]
[312328731,1705779039759,-158.373525,0.00039335,2]
[312328732,1705779039769,-159.57600549,0.00039503,7]
[312328733,1705779039778,-171.27557106,0.00039525,7]
[312328734,1705779039787,-157.865816,0.00039555,2]
[312328735,1705779039796,-282.4328768,0.00039581,8]
[312328736,1705779039805,-245.17457541,0.000396,30]
[312328737,1705779039815,-1500.0,0.00039726,7]
[312328738,1705779039828,-160.0,0.00039871,14]
[312328739,1705779039838,-333.2863,0.00039982,7]
[312328740,1705779039847,-5769.07722314,0.0003999,4]
[312328741,1705779039857,-5000.0,0.00039991,7]
[312328742,1705779039866,-154.78330338,0.0004,7]
[312328743,1705779039875,-1279.9341791,0.0004,4]
[312328744,1705779039885,-154.78330338,0.0004,4]
[312328745,1705779039895,-862.37799607,0.0004,4]
[312328746,1705779039905,-738.23836783,0.0004,2]
[312328747,1705779039914,-299.65506824,0.0004,2]
[312328748,1705779039923,-5000.0,0.0004,2]
[312328749,1705779039933,-517.49938136,0.0004,5]
[312328750,1705779039942,-719.57029108,0.0004,2]
[312328751,1705779039951,-18893.38699722,0.0004,15]
[312328752,1705779039960,-2717.25590153,0.0004,2]
[312328753,1705779039969,-16210.00302709,0.0004,10]
[312328754,1705779039978,-168.25252747,0.0004,2]
[312328755,1705779039988,-290.53429954,0.0004,4]
[312328756,1705779039998,-500.0,0.0004,10]
[312328757,1705779040008,-249.35630735,0.0004,2]
[312328758,1705779040017,-592.4338243,0.0004,30]
[312328759,1705779040027,-500.0,0.0004,10]
[312328760,1705779040036,-5000.0,0.00040005,7]
[312328761,1705779040045,-171.27557106,0.00040048,30]
[312328762,1705779040054,-50000.0,0.00040077,7]
[312328763,1705779040063,-3270.6680548,0.00040112,7]
[312328764,1705779040076,-4737.49322784,0.00040112,7]
[312328765,1705779040086,-199.356477,0.00040133,2]
[312328766,1705779040095,-166.679109,0.00040133,2]
[312328767,1705779040104,-156.82863612,0.00040133,2]
[312328803,1705779044911,-3216.27669923,0.00029659,2]
[312328804,1705779044921,-582.82854097,0.00032305,2]
[312328806,1705779044930,-406.7847598,0.00032305,2]
[312328809,1705779044971,-93.2152402,0.00032305,2]
[312328810,1705779044982,-176.05258695,0.00032305,2]
[312328811,1705779044992,-561.63452029,0.00032305,2]
[312328812,1705779045001,-262.3490759,0.00032305,2]
[312328813,1705779045010,-9.85047288,0.00040133,2]
[312328814,1705779045020,-135.02810378,0.000402,30]
[312328833,1705779046512,-154.78330338,0.00040199,4]
[312328834,1705779046521,-1118.66750517,0.00040199,4]
[312328944,1705780012101,-154.78330338,0.0002198,4]
[312328945,1705780012122,-154.78330338,0.00021981,2]
[312328946,1705780012144,-2.98304659,0.00021983,2]
[312328947,1705780034091,-158.61013242,0.00021982,2]
[312328948,1705780034115,-2832.458949,0.00021983,2]
[312328949,1705780034135,-985.52879445,0.00021983,2]
[312328950,1705780034158,-678.35754423,0.00021984,2]
[312328951,1705780034178,-292.78022956,0.00022,4]
[312328952,1705780034202,-154.78330338,0.00025545,4]
[312328953,1705780034224,-200.0,0.00026399,15]
[312328954,1705780034244,-154.78330338,0.00028383,2]
[312328955,1705780034264,-4012.5594856,0.00028384,2]
[312328956,1705780034285,-1069.50760425,0.00028385,2]
[312328957,1705780039072,-2181.70697716,0.00028385,2]
[312329043,1705780238688,-154.78330338,0.00028378,4]
[312329045,1705780238698,-154.78330338,0.00028381,2]
[312329047,1705780238708,-4012.5594856,0.00028382,2]
[312329049,1705780238717,-158.61013242,0.00028383,2]
[312329052,1705780238727,-1581.76828075,0.00028383,2]
[312329054,1705780238737,-470.52459336,0.00028383,2]
[312329055,1705780238746,-21648.78541859,0.00028385,2]
[312329057,1705780238756,-3216.27669923,0.00028385,2]
[312329059,1705780238766,-158.170441,0.00028767,2]
[312329061,1705780238775,-158.373525,0.00028767,2]
[312329062,1705780238786,-280.0,0.00029039,15]
[312329064,1705780238795,-158.170441,0.00029648,2]
[312329065,1705780238805,-188.0,0.0003,2]
[312329067,1705780238815,-158.170441,0.00030528,2]
[312329069,1705780238825,-3000.0,0.000309,7]
[312329071,1705780238834,-238.14143998,0.00031,4]
[312329073,1705780238843,-158.170441,0.00031409,2]
[312329076,1705780238853,-391.0,0.00031943,15]
[312329078,1705780238863,-1045.90652664,0.00031964,4]
[312329080,1705780238872,-2116.84,0.00031988,3]
[312329082,1705780238881,-238.14143998,0.00031988,4]
[312329084,1705780238890,-7957.69581218,0.00031996,2]
[312329086,1705780238900,-824.03065617,0.00031997,4]
[312329088,1705780238909,-2785.30572415,0.00031998,4]
[312329090,1705780238919,-221.65176998,0.00031998,4]
[312329092,1705780238928,-1558.99340382,0.00031998,4]
[312329094,1705780238938,-2134.36263871,0.00031998,4]
[312329096,1705780238947,-154.96023507,0.00031998,4]
[312329098,1705780238956,-678.89502784,0.00031998,4]
[312329100,1705780238966,-1459.60251302,0.00031998,4]
[312329102,1705780238975,-2535.82639996,0.00031998,4]
[312329104,1705780238984,-748.2997631,0.00031998,4]
[312329106,1705780238994,-6148.34366666,0.00031998,4]
[312329108,1705780239003,-2170.3168048,0.00031998,4]
[312329110,1705780239012,-663.3841438,0.00031998,4]
[312329112,1705780239021,-164.91120392,0.00031998,4]
[312329114,1705780239031,-260.43027978,0.00031998,4]
[312329116,1705780239040,-166.70935578,0.00031998,4]
[312329117,1705780239048,-522.93963422,0.00031998,4]
[312329119,1705780239058,-1279.77469611,0.00031998,4]
[312329122,1705780239068,-3439.02090908,0.00031999,4]
[312329124,1705780239078,-171.27,0.00031999,2]
[312329125,1705780239088,-171.27,0.00031999,2]
[312329128,1705780239099,-171.27,0.00031999,2]
[312329129,1705780239108,-285201.86665853,0.00032,4]
[312329131,1705780239119,-154.78330338,0.00032,4]
[312329133,1705780239129,-158.170441,0.0003229,2]
[312329136,1705780239138,-1094.47895322,0.000325,20]
[312329138,1705780239148,-171.27,0.00032503,2]
[312329140,1705780239160,-50000.0,0.00032504,6]
[312329141,1705780239171,-63758.30182961,0.00032504,6]
[312329143,1705780239180,-26768.8491667,0.00032504,4]
[312329146,1705780239190,-8065.02752618,0.00032504,4]
[312329148,1705780239201,-5042.54525968,0.00032575,2]
[312329149,1705780239210,-529.18790385,0.00032575,2]
[312329152,1705780239220,-218.62606613,0.00032575,2]
[312329153,1705780239229,-180.08438077,0.00032575,2]
[312329156,1705780239240,-795.24602623,0.00032575,2]
[312329157,1705780239250,-578.01011733,0.00032575,2]
[312329160,1705780239261,-550.17081543,0.00032575,2]
[312329162,1705780239270,-532.51398544,0.00032575,2]
[312329164,1705780239279,-250.0,0.00032876,7]
[312329166,1705780239288,-154.78330338,0.00033,4]
[312329168,1705780239297,-158.97429893,0.00033,2]
[312329169,1705780239307,-165.0,0.00033,2]
[312329171,1705780239317,-171.0,0.00033,2]
[312329174,1705780239327,-158.170441,0.0003317,2]
[312329176,1705780239337,-158.170441,0.00034051,2]
[312329178,1705780239346,-500.0,0.00034246,7]
[312329180,1705780239355,-158.170441,0.00034932,2]
[312329182,1705780239364,-393.1441642,0.00034998,2]
[312329184,1705780239373,-500.0,0.00034998,2]
[312329186,1705780239382,-571.76180693,0.00034998,2]
[312329188,1705780239392,-407.97997867,0.00034998,2]
[312329190,1705780239401,-500.0,0.00034998,2]
[312329192,1705780239410,-191.20728432,0.00034998,2]
[312329193,1705780239419,-500.0,0.00034998,2]
[312329195,1705780239429,-500.0,0.00034998,2]
[312329197,1705780239438,-500.0,0.00034998,2]
[312329199,1705780239447,-500.0,0.00034998,2]
[312329201,1705780239456,-500.0,0.00034998,2]
[312329203,1705780239466,-500.0,0.00034998,2]
[312329205,1705780239475,-500.0,0.00034998,2]
[312329207,1705780239485,-500.0,0.00034998,2]
[312329210,1705780239494,-500.0,0.00034998,2]
[312329212,1705780239503,-500.0,0.00034998,2]
[312329213,1705780239512,-500.0,0.00034998,2]
[312329215,1705780239522,-338.11679041,0.00034998,2]
[312329217,1705780239531,-500.0,0.00034998,2]
[312329219,1705780239540,-500.0,0.00034998,2]
[312329222,1705780239550,-154.78330338,0.00035,6]
[312329224,1705780239559,-155.23866682,0.00035,2]
[312329226,1705780239569,-2356.16401148,0.00035,2]
[312329228,1705780239578,-31980.30894113,0.00035,4]
[312329230,1705780239587,-154.78330338,0.00035,4]
[312329232,1705780239597,-333.12649891,0.00035,4]
[312329234,1705780239606,-3119.96924767,0.00035,20]
[312329236,1705780239615,-591.88726683,0.00035,2]
[312329238,1705780239624,-2085.08363542,0.00035,4]
[312329240,1705780239636,-200.0,0.00035137,15]
[312329242,1705780239645,-348.0,0.00035137,15]
[312329244,1705780239655,-500.0,0.000353,7]
[312329245,1705780239665,-4425.50824305,0.000355,14]
[312329247,1705780239674,-500.0,0.000356,7]
[312329249,1705780239684,-750.0,0.00035616,7]
[312329251,1705780239693,-500.0,0.00035616,2]
[312329252,1705780239702,-500.0,0.00035616,2]
[312329254,1705780239712,-500.0,0.00035616,2]
[312329256,1705780239720,-500.0,0.00035616,2]
[312329258,1705780239730,-500.0,0.00035616,2]
[312329260,1705780239738,-500.0,0.00035616,2]
[312329262,1705780239747,-500.0,0.00035616,2]
[312329264,1705780239756,-291.50651603,0.00035616,2]
[312329266,1705780239766,-182.36949,0.00035616,120]
[312329268,1705780239775,-158.170441,0.00035812,2]
[312329270,1705780239784,-1000.0,0.000359,7]
[312329272,1705780239793,-5000.0,0.00035956,2]
[312329273,1705780239802,-154.78330338,0.00036179,7]
[312329275,1705780239811,-1000.0,0.000362,7]
[312329277,1705780239820,-160.81104418,0.00036205,2]
[312329279,1705780239829,-150.77383924,0.0003641,2]
[312329281,1705780239839,-250.11570644,0.0003641,2]
[312329283,1705780239849,-1000.0,0.000365,7]
[312329285,1705780239858,-158.170441,0.00036693,2]
[312329287,1705780239867,-1000.0,0.000368,7]
[312329289,1705780239876,-1000.0,0.00036986,7]
[312329291,1705780239886,-154.78330338,0.00037,4]
[312329293,1705780239895,-150.0,0.00037,30]
[312329295,1705780239904,-301.54767848,0.00037022,4]
[312329297,1705780239913,-302.0,0.0003718,2]
[312329299,1705780239922,-300.0,0.0003718,2]
[312329301,1705780239932,-150.0,0.000372,30]
[312329303,1705780239942,-212.642763,0.000374,30]
[312329305,1705780239951,-158.170441,0.00037573,2]
[312329307,1705780239960,-603.09535696,0.00037644,7]
[312329309,1705780239969,-1000.0,0.0003766,10]
[312329311,1705780239979,-660.24671343,0.000379,2]
[312329313,1705780239988,-2139.23248446,0.00038,4]
[312329315,1705780239998,-2000.0,0.00038,4]
[312329317,1705780240007,-3132.32002096,0.00038189,5]
[312329319,1705780240017,-166.74380429,0.00038277,4]
[312329321,1705780240026,-1250.0,0.00038356,7]
[312329323,1705780240035,-158.170441,0.00038454,2]
[312329325,1705780240044,-1206.19071393,0.00038597,30]
[312329327,1705780240054,-200.0,0.00038651,30]
[312329329,1705780240064,-200.0,0.00038651,30]
[312329331,1705780240073,-368.0,0.00038651,30]
[312329333,1705780240082,-243.452,0.00038822,2]
[312329335,1705780240091,-150.0,0.00038822,2]
[312329337,1705780240100,-150.0,0.00038822,2]
[312329339,1705780240109,-5000.0,0.00038904,7]
[312329341,1705780240119,-1783.35451079,0.00038998,4]
[312329343,1705780240128,-1649.35504152,0.00038998,4]
[312329345,1705780240137,-158.170441,0.00039335,2]
[312329347,1705780240146,-245.17457541,0.000396,30]
[312329349,1705780240158,-1500.0,0.00039726,7]
[312329350,1705780240167,-282.40467581,0.00039838,8]
[312329352,1705780240176,-171.27557106,0.00039847,7]
[312329354,1705780240186,-333.2863,0.00039962,7]
[312329356,1705780240195,-171.27557106,0.00039979,7]
[312329358,1705780240204,-5769.07722314,0.0003999,4]
[312329360,1705780240213,-154.78330338,0.0004,7]
[312329362,1705780240223,-249.35630735,0.0004,2]
[312329364,1705780240232,-154.78330338,0.0004,4]
[312329366,1705780240242,-500.0,0.0004,10]
[312329382,1705780240252,-1599.91772387,0.0004,4]
[312329384,1705780240401,-592.4338243,0.0004,30]
[312329386,1705780240410,-1845.46619047,0.0004,4]
[312329388,1705780240420,-290.53429954,0.0004,4]
[312329390,1705780240429,-1008.0,0.0004,2]
[312329392,1705780240438,-10000.0,0.0004,5]
[312329394,1705780240448,-5000.0,0.0004,2]
[312329396,1705780240457,-5000.0,0.00040071,7]
[312329398,1705780240466,-5000.0,0.00040071,7]
[312329400,1705780240474,-155.0,0.000401,2]
[312329402,1705780240484,-1455.91236555,0.00040187,2]
[312329404,1705780240493,-342.68202695,0.00040198,4]
[312329406,1705780240502,-244.20459022,0.00040199,4]
[312329408,1705780240511,-600.89956113,0.00040199,4]
[312329410,1705780240520,-323.57586002,0.00040199,3]
[312329412,1705780240529,-980.8946807,0.00040199,4]
[312329414,1705780240538,-261.40839953,0.00040199,7]
[312329416,1705780240547,-158.170441,0.00040215,2]
[312329417,1705780240556,-50000.0,0.00040227,7]
[312329419,1705780240565,-159.57600549,0.00040317,30]
[312329421,1705780240574,-575.0,0.000404,30]
[312329423,1705780240582,-322.74820093,0.00040635,11]
[312329425,1705780240592,-200.0,0.000407,4]
[312329427,1705780240601,-1500.0,0.000407,3]
[312329429,1705780240610,-13459.09426838,0.00040752,4]
[312329431,1705780240619,-5000.0,0.00040956,4]
[312329433,1705780240628,-25396.92611464,0.00040995,5]
[312329435,1705780240641,-13182.39096122,0.00040995,5]
[312329437,1705780240650,-23104.86657698,0.00041,10]
[312329440,1705780240659,-4497.59440094,0.00041,10]
[312329442,1705780240668,-10326.37001279,0.00041,10]
[312329444,1705780240677,-2437.80955193,0.00041,2]
[312329509,1705780242214,-158.61013242,0.00028377,2]
[312329511,1705780242223,-2625.94446642,0.00041,2]
[312329512,1705780242234,-2241.16349006,0.00041,2]
[312329513,1705780242244,-150.0,0.00041,34]
[312329514,1705780242253,-163.995668,0.00041,2]
[312329515,1705780242262,-5000.0,0.00041017,7]
[312329516,1705780242271,-171.27557108,0.00041088,30]
[312329518,1705780242280,-517.58034879,0.00041094,2]
[312329520,1705780242289,-171.27,0.00041094,2]
[312329521,1705780242297,-171.27,0.00041094,2]
[312329523,1705780242307,-171.27,0.00041094,2]
[312329525,1705780242316,-171.27,0.00041094,2]
[312329526,1705780242325,-171.27,0.00041094,2]
[312329528,1705780242334,-171.27,0.00041094,2]
[312329530,1705780242343,-200.37400988,0.00041095,2]
[312329531,1705780242352,-2500.0,0.00041095,30]
[312329532,1705780242361,-384.33930543,0.00041095,4]
[312329533,1705780242371,-620.47380229,0.00041095,4]
[312329534,1705780242380,-8266.8816318,0.00041095,4]
[312329562,1705780243650,-2187.41,0.00041085,3]
[312329564,1705780243660,-559.67534552,0.00041095,4]
[312329571,1705780243709,-1470.90215682,0.00041095,4]
[312329573,1705780243718,-500.0,0.00041095,31]
[312329575,1705780243728,-500.0,0.00041095,31]
[312329577,1705780243737,-500.0,0.00041095,31]
[312329579,1705780243746,-500.0,0.00041095,7]
[312329581,1705780243755,-500.0,0.00041095,31]
[312329583,1705780243764,-350.98770712,0.00041095,31]
[312329585,1705780243773,-500.0,0.00041095,7]
[312329587,1705780243782,-500.8124208,0.00041095,31]
[312329589,1705780243792,-501.06900425,0.00041095,31]
[312329591,1705780243801,-500.0,0.00041095,31]
[312329592,1705780243811,-501.15029492,0.00041095,31]
[312329594,1705780243820,-500.0,0.00041095,31]
[312329596,1705780243830,-500.0,0.00041095,31]
[312329598,1705780243840,-500.0,0.00041095,31]
[312329600,1705780243850,-500.0,0.00041095,31]
[312329603,1705780243860,-500.0,0.00041095,31]
[312329605,1705780243869,-500.0,0.00041095,31]
[312329606,1705780243878,-500.0,0.00041095,31]
[312329609,1705780243888,-500.0,0.00041095,31]
[312329610,1705780243898,-500.0,0.00041095,31]
[312329612,1705780243907,-500.0,0.00041095,31]
[312329614,1705780243916,-500.0,0.00041095,31]
[312329616,1705780243925,-500.0,0.00041095,31]
[312329618,1705780243934,-150.0,0.00041095,31]
[312329620,1705780243942,-500.0,0.00041095,31]
[312329622,1705780243951,-174.66970385,0.00041095,31]
[312329624,1705780243960,-500.0,0.00041095,31]
[312329626,1705780243969,-500.0,0.00041095,31]
[312329628,1705780243979,-500.0,0.00041095,31]
[312329630,1705780243988,-500.0,0.00041095,31]
[312329632,1705780243997,-707.0,0.00041095,31]
[312329634,1705780244006,-500.0,0.00041095,31]
[312329636,1705780244015,-559.45132248,0.00041095,31]
[312329638,1705780244023,-500.0,0.00041095,31]
[312329640,1705780244032,-500.0,0.00041095,31]
[312329642,1705780244041,-500.0,0.00041095,31]
[312329644,1705780244051,-500.0,0.00041095,31]
[312329646,1705780244061,-500.0,0.00041095,31]
[312329648,1705780244070,-745.04,0.00041095,31]
[312329650,1705780244079,-500.0,0.00041095,31]